Cogmind - Beta 17 @@@ ROGUE MODE // 2026.07.01 @ 00:45:26 Player: Venar246 Result: Destroyed by QV-NJV(R) with Subdweller Laser Performance ------------- Evolutions (0) 0 Regions Visited (3) 600 Robots Destroyed (14) 70 Value Destroyed (485) 485 Prototype IDs (0) 0 Alien Tech Used (0) 0 Bonus (0) 0 TOTAL SCORE: 1155 Bonus ------- None Cogmind --------- Core Integrity 0/250 Matter 300/300 Energy 194/200 System Corruption 0% Temperature Cool (6) Movement Walking (190) Ox1 Location -10/Subcaves Parts ------- > --- POWER (1) -------- Subdweller Power Source > --- PROPULSION (2) --- Aluminum Leg Aluminum Leg > --- UTILITY (2) ------ Improved Heat Sink Large Storage Unit > --- WEAPON (2) ------- Particle Gun Subdweller Beam Cannon > --- INVENTORY (15) --- Light Ion Engine Subdweller Power Source Aluminum Leg Aluminum Leg Heat Sink Targeting Computer Bomb Drone Bay Beam Cannon Light Assault Rifle Light Assault Rifle Peak State ------------ > --- POWER ------------ Subdweller Power Source > --- PROPULSION ------- Aluminum Leg Aluminum Leg > --- UTILITY ---------- Improved Heat Sink Large Storage Unit > --- WEAPON ----------- Particle Gun Subdweller Beam Cannon > --- INVENTORY -------- Light Ion Engine Subdweller Power Source Aluminum Leg Aluminum Leg Heat Sink Targeting Computer Bomb Drone Bay Beam Cannon Light Assault Rifle Light Assault Rifle [Rating: 14] Favorites ----------- Power Light Nuclear Core Engine Ion Engine Power Core Light Nuclear Core Propulsion Aluminum Leg Treads Light Treads Leg Aluminum Leg Utility Large Storage Unit Device Improved Heat Sink Storage Large Storage Unit Weapon Light Assault Rifle Energy Gun Particle Gun Energy Cannon Beam Cannon Ballistic Gun Light Assault Rifle Build | -11 -10 -10 -10 ------- Run | Yrd Mat Min Sub Slots Evolved . | . . . . Power . | . . . . Propulsion . | . . . . Utility . | . . . . Weapon . | . . . . Parts Attached 19 | 7 4 5 3 Power 4 | 1 1 1 1 Engine 3 | 1 . 1 1 Core 1 | . 1 . . Reactor . | . . . . Propulsion 6 | 3 1 1 1 Treads 1 | 1 . . . Leg 5 | 2 1 1 1 Wheel . | . . . . Hover . | . . . . Flight . | . . . . Utility 3 | 1 1 1 . Device 1 | . . 1 . Storage 2 | 1 1 . . Processor . | . . . . Hackware . | . . . . Protection . | . . . . Artifact . | . . . . Weapon 6 | 2 1 2 1 Energy Gun 2 | . 1 1 . Energy Cannon 2 | . . 1 1 Ballistic Gun 2 | 2 . . . Ballistic Cannon . | . . . . Launcher . | . . . . Special Weapon . | . . . . Impact Weapon . | . . . . Slashing Weapon . | . . . . Piercing Weapon . | . . . . Special Melee Weapon . | . . . . Unidentified Prototypes . | . . . . Parts Lost 4 | . 1 2 1 Power 1 | . . 1 . Propulsion 1 | . . . 1 Utility . | . . . . Weapon 2 | . 1 1 . Highest Loss Streak 2 | . 1 2 1 To Critical Strikes . | . . . . Average Backups 7 | 1 5 8 9 Power 1 | . 1 1 1 Propulsion 2 | . 1 2 2 Utility 2 | . 1 2 3 Weapon 2 | . 1 2 2 Tool/Special . | . . . . Unused Backups 6 | . . . 6 Power 1 | . . . 1 Propulsion 1 | . . . 1 Utility 3 | . . . 3 Weapon 1 | . . . 1 Tool/Special . | . . . . Average Slot Usage (%) 91 | . 84 90 98 Engine 9 | . 11 6 14 Core 4 | . 2 7 . Leg 27 | . 28 28 27 Device 6 | . . 5 14 Storage 14 | . 14 14 14 Energy Gun 11 | . 4 13 12 Energy Cannon 6 | . . 6 13 Ballistic Gun 9 | . 23 7 . Peak Build Rating 14 | 6 8 12 14 Average Rating 9 | 4 6 10 13 On Entrance 6 | . 6 8 12 Avg Prop Armor Cover (%) . | . . . . Naked Turns . | . . . . Heaviest Build 37 | 11 27 32 37 Greatest Support 20 | 20 20 20 20 Greatest Overweight (x) 3 | 1 1 1 3 Average Overweight (x) . | . . 1 1 Largest Inventory Capacity 15 | 8 15 15 15 Average Capacity 13 | 6 11 15 15 Most Carried 12 | 2 8 10 12 Average Carried 8 | 1 5 9 10 Final Capacity 15 | 8 15 15 15 Final Carried 11 | 2 8 10 11 Class Distribution -------------------- 78% | Mutant 21% | Scavenger-Mutant Dominant Class ---------------- Mutant | -10/Materials Mutant | -10/Mines Scavenger-Mutant | -10/Subcaves Resources | -11 -10 -10 -10 ----------- Run | Yrd Mat Min Sub Matter Collected 459 | 153 216 50 40 Remotely . | . . . . Salvage Created 612 | . 216 194 202 Parts 33 | . 14 7 12 Haulers Intercepted . | . . . . Recyclers Shooed 3 | . 2 1 . Parts Field Recycled . | . . . . Retrieved Matter . | . . . . Parts Self-Destructed 3 | . . . 3 Prevented . | . . . . Parts Restored . | . . . . Kills | -11 -10 -10 -10 ------- Run | Yrd Mat Min Sub Combat Hostiles Destroyed 12 | . 5 2 5 Guns 6 | . 5 . 1 Cannons 6 | . . 2 4 Classes Destroyed 4 | . 1 2 1 Worker 1 | . . 1 . Recycler 1 | . . 1 . Grunt 9 | . 5 2 2 Subdweller 3 | . . . 3 Best Kill Streak 3 | . 1 3 2 Combat Bots Only 2 | . 1 2 2 Max Kills in Single Turn 1 | . 1 1 1 Gunslinging . | . . . . Exploded . | . . . . Melee . | . . . . Uniques/NPCs Destroyed . | . . . . Combat | -11 -10 -10 -10 -------- Run | Yrd Mat Min Sub Hostile Shots Fired 99 | . 50 18 31 Missed 27 | . 9 4 14 Hits 72 | . 41 14 17 Projectile 72 | . 41 14 17 AOE 2 | . . . 2 Damage Taken 1136 | . 513 194 429 Core 271 | . 80 55 136 Absorbed by Shields . | . . . . Core Remaining (%) 100 | 100 . . . Volleys Fired 66 | . 31 14 21 Largest 2 | . 2 2 2 Hottest 125 | . 60 125 125 Shots Fired 119 | . 60 22 37 Gun 87 | . 60 11 16 Cannon 32 | . . 11 21 Launcher . | . . . . Special . | . . . . Kinetic 49 | . 46 3 . Thermal 70 | . 14 19 37 Explosive . | . . . . Electromagnetic . | . . . . Robot Hit Streak 17 | . 7 5 17 Robot Miss Streak 2 | . 2 2 2 Penetration Max . | . . . . Secondary Targets . | . . . . Shots Hit Robots 81 | . 39 14 28 Core Hits 31 | . 17 6 8 Critical Kills . | . . . . Critical Parts Destroyed . | . . . . Critical Strikes 1 | . . . 1 Burn 1 | . . . 1 Melee Attacks . | . . . . Impact . | . . . . Slashing . | . . . . Piercing . | . . . . Sneak Attacks . | . . . . Combat Hostiles . | . . . . Follow-up Attacks . | . . . . Damage Inflicted 1064 | . 383 211 470 Guns 639 | . 380 76 183 Cannons 409 | . . 122 287 Explosions . | . . . . Melee . | . . . . Ramming 16 | . 3 13 . Kinetic 310 | . 304 6 . Thermal 738 | . 76 192 470 Explosive . | . . . . Electromagnetic . | . . . . Impact . | . . . . Slashing . | . . . . Piercing . | . . . . Highest Corruption . | . . . . Average Corruption . | . . . . Corruption Purged . | . . . . Corruption Blocked . | . . . . Overload Shots . | . . . . Overflow Damage . | . . . . Projectiles . | . . . . Explosions . | . . . . Melee . | . . . . Knockbacks . | . . . . Impact . | . . . . Kinetic . | . . . . Secondary . | . . . . Self-Inflicted Damage . | . . . . Shots . | . . . . Rammed . | . . . . Targets Rammed 4 | . 2 2 . Kicked 4 | . 2 2 . Crushed . | . . . . Highest Temperature 306 | . 129 306 2 Average Temperature 93 | . 48 149 2 Received Heat Transfer 504 | . 282 114 108 Effects 2 | . . 2 . Energy Bleed 2 | . . 2 . Siege Activations . | . . . . Martial Activations . | . . . . Shielding Activations . | . . . . Robots Disrupted . | . . . . Combat Hostiles . | . . . . Robots Corrupted . | . . . . Combat Hostiles . | . . . . Parts Fried . | . . . . Impact Corruptions . | . . . . Robots Melted . | . . . . Combat Hostiles . | . . . . Parts Melted 2 | . . 1 1 Heat Transferred 1669 | . 175 421 1073 Parts Sabotaged . | . . . . Parts Stolen . | . . . . Parts Stripped . | . . . . Power Chain Reactions . | . . . . Alert | -11 -10 -10 -10 ------- Run | Yrd Mat Min Sub Maximum Alert Level . | . . . . Low Security (%) 100 | 100 100 100 . Level 1 . | . . . . Level 2 . | . . . . Level 3 . | . . . . Level 4 . | . . . . Level 5 . | . . . . High Security . | . . . . Max Security . | . . . . Peak Influence 65 | . 65 47 . Initial 17 | . . 17 . Average 9 | . 21 4 . Influence Increases 266 | . 156 60 50 Destroy 0b10 Robot/C 180 | . 100 40 40 Destroy 0b10 Robot/NC 10 | . . 10 . Destroy Leader 50 | . 30 10 10 Successful Hack 11 | . 11 . . Lose Combat Pursuer 15 | . 15 . . Influence Decreases 266 | . 111 105 50 Entered New Map 28 | . . 28 . Time Decay 228 | . 111 77 40 Lost Part 10 | . . . 10 Squads Dispatched 1 | . 1 . . Investigation . | . . . . Extermination . | . . . . Reinforcement 1 | . 1 . . Assault . | . . . . Garrison . | . . . . Intercept . | . . . . Searches Triggered . | . . . . Construction Impeded . | . . . . Haulers Reinforced . | . . . . Active Scanning Responses . | . . . . Cargo Convoy Interrupts . | . . . . Stealth | -11 -10 -10 -10 --------- Run | Yrd Mat Min Sub Distress Signals 1 | . 1 . . Communications Jammed . | . . . . Distress Signals . | . . . . Times Spotted 21 | . 11 2 8 Peak Tracking Total 3 | . 3 2 3 Tactical Retreats 1 | . 1 . . Traps | -11 -10 -10 -10 ------- Run | Yrd Mat Min Sub Traps Triggered . | . . . . Indirectly . | . . . . Trap Hack Attempts . | . . . . Triggered . | . . . . Disarmed . | . . . . Reprogrammed . | . . . . Reused . | . . . . Traps Extracted . | . . . . Installed . | . . . . Triggered . | . . . . Machines | -11 -10 -10 -10 ---------- Run | Yrd Mat Min Sub Machines Disabled . | . . . . Max in Single Turn . | . . . . Machines Repaired . | . . . . Machines Dismantled . | . . . . Machines Sabotaged . | . . . . Overloaded Fab Kills . | . . . . Hacking | -11 -10 -10 -10 --------- Run | Yrd Mat Min Sub Machines Accessed 3 | . 2 1 . Terminals 2 | . 2 . . Fabricators . | . . . . Repair Stations . | . . . . Recycling Units . | . . . . Scanalyzers . | . . . . Garrison Access . | . . . . Total Hacks 8 | . 7 1 . Successful 4 | . 3 1 . Failed 4 | . 4 . . Catastrophic 2 | . 2 . . Database Lockouts . | . . . . Manual 2 | . 2 . . Terminals 7 | . 7 . . Fabricators . | . . . . Repair Stations . | . . . . Recycling Units . | . . . . Scanalyzers . | . . . . Garrison Access . | . . . . Terminal Hacks 4 | . 3 1 . Open Door 1 | . . 1 . Branch Access Points 1 | . 1 . . Locate Traps 1 | . 1 . . Registered Components 1 | . 1 . . Fabricator Hacks . | . . . . Repair Station Hacks . | . . . . Recycling Unit Hacks . | . . . . Scanalyzer . | . . . . Garrison Access Hacks . | . . . . Unauthorized Hacks . | . . . . Terminals . | . . . . Fabricators . | . . . . Repair Stations . | . . . . Recycling Units . | . . . . Scanalyzers . | . . . . Garrison Access . | . . . . Data Cores Recovered . | . . . . Used . | . . . . Hacking Detections 2 | . 2 . . Full Trace Events . | . . . . Feedback Events . | . . . . Feedback Blocked . | . . . . Robot Schematics Acquired . | . . . . Robots Built . | . . . . Authchips . | . . . . Time . | . . . . Total Robot Build Rating . | . . . . Part Schematics Acquired . | . . . . Parts Built . | . . . . Authchips . | . . . . Time . | . . . . Total Part Build Rating . | . . . . Part Studies Acquired . | . . . . Parts Repaired . | . . . . Time . | . . . . Parts Recycled . | . . . . Recycled Matter . | . . . . Retrieved Matter . | . . . . Retrieved Components . | . . . . Parts Scanalyzed . | . . . . Part Schematics Acquired . | . . . . Parts Damaged . | . . . . Bothacking | -11 -10 -10 -10 ------------ Run | Yrd Mat Min Sub Used RIF Installer . | . . . . Robots Hacked . | . . . . Non-combat . | . . . . Combat . | . . . . Robot Hacks Applied . | . . . . Relay Couplers Released . | . . . . Fabnet Peak Effective % . | . . . . Robots Rewired . | . . . . Allies Hacked . | . . . . Hacks Repelled . | . . . . Allies | -11 -10 -10 -10 -------- Run | Yrd Mat Min Sub Total Allies . | . . . . Largest Group . | . . . . Highest-Rated Group . | . . . . Highest-Rated Ally . | . . . . Total Orders . | . . . . Ally Attacks . | . . . . Total Damage . | . . . . Kills . | . . . . Allies Corrupted . | . . . . Allies Melted . | . . . . Intel | -11 -10 -10 -10 ------- Run | Yrd Mat Min Sub Active Infowar (turns) . | . . . . Robot Analysis Total . | . . . . Derelict Logs Recovered 1 | . . . 1 Drone Launches . | . . . . Drone Recoveries . | . . . . Exploration | -11 -10 -10 -10 ------------- Run | Yrd Mat Min Sub Turns Passed 1604 | 65 337 819 383 Spaces Moved 719 | 44 152 370 153 Core 4 | 4 . . . Treads 5 | 5 . . . Legs 710 | 35 152 370 153 Wheels . | . . . . Hover . | . . . . Flight . | . . . . Fastest Speed 50 | 50 120 190 190 Average Speed 175 | 119 143 190 190 Slowest Speed 330 | 160 190 190 330 Overloaded Moves . | . . . . Propulsion Burnouts . | . . . . Robots Hopped . | . . . . Potential Cave-ins . | . . . . Cave-ins Triggered . | . . . . Exploration Rate (%) 24 | 3 24 65 6 Regions Visited 3 Branch Regions 2 Pre-discovered Areas 1 | . . . 1 Known Exits Taken 1 | . 1 . . Unknown Exits Taken 2 | 1 . 1 . Scrap Searched 1 | . . 1 . Spaces Dug 1 | . . . 1 Terrain Destroyed 1 | . . . 1 Melee . | . . . . Projectile 1 | . . . 1 AOE . | . . . . Terrain Rammed . | . . . . Walls Destroyed . | . . . . Machines Disabled . | . . . . Actions | -11 -10 -10 -10 --------- Run | Yrd Mat Min Sub Total 939 | 54 216 461 208 Wait 116 | . 23 70 23 Move 716 | 43 151 369 153 Hop . | . . . . Pick Up 11 | 3 4 1 3 Fast Attach 12 | 6 2 2 2 Attach 3 | 1 . 1 1 Detach . | . . . . Swap 5 | . 2 2 1 Drop 6 | 1 1 . 4 Fire 66 | . 31 14 21 Melee . | . . . . Ram . | . . . . Kick 4 | . 2 2 . Crush . | . . . . Escape Stasis . | . . . . Rewire . | . . . . Trap . | . . . . Miscellaneous . | . . . . Route ------- -11/Scrapyard -10/Materials -10/Mines (discovered 3 exits: [*Mat x2] / [*Sub]) -10/Subcaves History --------- Turn | Location | Event 12 | -11/Scrapyard | Discovered new exit (range 16) 66 | -11/Scrapyard | Entered Materials 181 | -10/Materials | Identified exit to Mines 315 | -10/Materials | Build established: Mutant 403 | -10/Materials | Entered Mines 547 | -10/Mines | Found the Drone Emporium 555 | -10/Mines | Found Prototype Device 713 | -10/Mines | Discovered new exit (range 5) 858 | -10/Mines | Core integrity fell below 50% 1146 | -10/Mines | Discovered new exit (range 7) 1182 | -10/Mines | Discovered new exit (range 10) 1222 | -10/Mines | Entered Subcaves 1223 | -10/Subcaves | Approached by a straggling Scientist 1333 | -10/Subcaves | Learned location of Zion (-7) 1557 | -10/Subcaves | Build established: Scavenger-Mutant 1575 | -10/Subcaves | Core integrity fell below 20% 1601 | -10/Subcaves | Ambushed by Subdweller buried in earth 1605 | -10/Subcaves | Destroyed by QV-NJV(R) with Subdweller Laser Last Messages --------------- 01355_ Acquired 20 matter. 01358_ Acquired Particle Gun. 01363_ Subatomizers dissect the Sub. Monowheel. 01366_ Acquired 10 matter. 5E-W05(c): "I think it's somewhere south of here" 01376_ Subatomizers dissect the Sub. Monowheel. 5E-W05(c): "I think it's somewhere south of here" 01515_ Subatomizers dissect the Ion Engine, destroying it. 5E-W05(c): "I think it's somewhere south of here" 01574_ NP-3GF(R) emerges from the Twisted Machinery. 01574_ 5E-W05(c) destroyed. 01575_ LE-K2R(R) destroyed. [Achievement: Do Not Disturb] 01602_ QV-NJV(R): "ARGHSUB!" Map ----- +----------------------------------------------------+ | ?????????????????????????????????????????????????? | | ?????????????????????????????????????????????????? | | ?????????????????????????????????????????????????? | | ?????????????????????????????????????????????????? | | ?????????????????????????????????????????????????? | | ?????????????????????????????????????????????????? | | ?????????????????????????????######??????????????? | | ????????????????????????????## #""#??????????????? | | ????????????????????#?????### #??????????????? | | ???????????????????## #?### #????????######?? | | ???????????????????# "#"# ##?####?## ## ### | | ??????????????????? """""""! % "### ### | | ??????????????????? "" " "%|= % #### # | | ???????????????????""" "!### #% #??#### | | ???????????????????""" ##### ###### #?????? | | ???????????????????""" ?## ##????## #????? | | ?????????????????#"""""?## ##??????## #???? | | ??????#?????????? ""### ##????????## ##???? | | ??????# #?##???? "" #??????????#####????? | | ??????# # #??# "" #???????????????????? | | ???????? "#?### ## #### ##??????????????????? | | ??????????# "##### #?###### #??????????????????? | | ??????????# ;"""#"#### #; ##??????????????????? | | *! # #R ;*% ##; ;;;; #???????????????????? | | =%| R #????????????????????? | | ????# "" # ; @; #????????????????????? | | ????## # ""#####;;; ;;#????????????????????? | | ????"" ### ""# #???## #????????????????????? | | ???? ?????#"######????## ###????????????????????? | | ??????????##???????????####??????????????????????? | | ?????????????????????????????????????????????????? | | ?????????????????????????????????????????????????? | | ?????????????????????????????????????????????????? | | ?????????????????????????????????????????????????? | | ?????????????????????????????????????????????????? | | ?????????????????????????????????????????????????? | | ?????????????????????????????????????????????????? | | ?????????????????????????????????????????????????? | | ?????????????????????????????????????????????????? | | ?????????????????????????????????????????????????? | | ?????????????????????????????????????????????????? | | ?????????????????????????????????????????????????? | | ?????????????????????????????????????????????????? | | ?????????????????????????????????????????????????? | | ?????????????????????????????????????????????????? | | ?????????????????????????????????????????????????? | | ?????????????????????????????????????????????????? | | ?????????????????????????????????????????????????? | | ?????????????????????????????????????????????????? | | ?????????????????????????????????????????????????? | +----------------------------------------------------+ Best States ------------- Heat Dissipation 39 Energy Generation 15 Energy Capacity 250 Matter Stores 300 Matter Capacity 300 Sight Range 16 Terrain Scan Density 10 Evasion (%) 55 Recoil Reduction 1 Item Schematics ----------------- None Robot Schematics ------------------ None Fabricated ------------ Nothing Repaired ---------- Nothing Studied --------- None Alien Tech Used ----------------- None Achievements -------------- Do Not Disturb Challenges ------------ None Game ------ Seed GyrokineticMetafiberScanner Manual? 0 Play Time 00:10:46 Cumulative 44.2 hours Start 2026.06.30 @ 21:55:20 End 2026.07.01 @ 00:45:26 Sessions 3 Manual Loads 0 Difficulty Rogue Special Mode None Game No. 86 Rogue 86 Adventurer 0 Explorer 0 Win Type - Total 1 Types 1/0/0/0/0/0/0/0/0/0 Lore% 25 Gallery% 32 Achievement% 23 Wizard Run 0 Options --------- Layout 1 ASCII 0 Keyboard 0 Movement Arrows Keybinds 0 Fullscreen 1 Font 32/SmallcapsGlow Map View 50x35 Zoom Use 0% Tactical HUD 1 Map Filters NONE Filters NONE Steam 1 RUN: d3dfc4c9-af66-40e0-b596-1a3fac544d3e